bitfinex/quotes_SOLUSD_20251231
["timestamp","ask_amount","ask_price","bid_price","bid_amount"]
[1767193454024,3.15995644,125.85,125.81,0.69738194]
[1767193454229,4.06996488,125.86,125.81,0.69738194]
[1767193454630,0.71000844,125.84,125.81,0.69738194]
[1767193455045,3.86996488,125.83,125.79,0.69738194]
[1767193455540,0.71000844,125.83,125.79,0.69738194]
[1767193455715,3.15995644,125.84,125.79,0.69738194]
[1767193455919,3.86996488,125.84,125.79,0.69738194]
[1767193456539,0.71000844,125.83,125.79,0.69738194]
[1767193457036,3.86996488,125.83,125.79,0.69738194]
[1767193457238,3.86996488,125.82,125.78,0.69738194]
[1767193457421,0.71000844,125.82,125.78,3.85733838]
[1767193457928,3.86996488,125.84,125.8,0.69738194]
[1767193458524,3.15995644,125.84,125.8,0.69738194]
[1767193458729,0.66363918,125.83,125.8,0.69738194]
[1767193460266,0.66363918,125.83,125.78,11.1100113]
[1767193460422,3.82359562,125.83,125.79,0.68644256]
[1767193461149,0.66363918,125.83,125.79,0.68644256]
[1767193461638,0.65721853,125.81,125.77,0.65444504]
[1767193462242,0.65721853,125.81,125.78,0.65444504]
[1767193463427,3.81717497,125.82,125.78,0.65444504]
[1767193465641,105.41389964,125.84,125.8,0.65444504]
[1767193468761,102.2539432,125.84,125.8,0.65444504]
[1767193468936,105.41389964,125.84,125.8,0.65444504]
[1767193469558,0.65721853,125.84,125.8,0.65444504]
[1767193470055,0.2,125.86,125.81,0.65444504]
[1767193470260,0.2,125.86,125.83,0.65444504]
[1767193470560,0.85721853,125.86,125.83,0.65444504]
[1767193471557,0.65721853,125.83,125.74,0.65444504]
[1767193471763,3.81717497,125.82,125.78,0.65444504]
[1767193471938,3.15995644,125.81,125.78,0.65444504]
[1767193472141,3.15995644,125.81,125.76,11.11132589]
[1767193472142,3.81717497,125.81,125.77,0.65444504]
[1767193477162,0.65721853,125.81,125.77,7.95101639]
[1767193477385,3.81717497,125.81,125.78,0.65444504]
[1767193478471,0.65721853,125.81,125.78,0.65444504]
[1767193479539,17.67995644,125.82,125.78,0.65444504]
[1767193479540,14.52,125.82,125.78,0.65444504]
[1767193479758,3.81717497,125.84,125.79,3.81440148]
[1767193480068,0.65721853,125.83,125.79,3.81440148]
[1767193480571,0.65721853,125.83,125.79,0.65444504]
[1767193480755,3.81717497,125.83,125.79,0.65444504]
[1767193481346,0.65721853,125.83,125.79,7.94975494]
[1767193481573,0.65721853,125.83,125.8,0.65444504]
[1767193482465,102.2539432,125.85,125.8,0.65444504]
[1767193482664,0.65721853,125.84,125.8,3.15995644]
[1767193482874,0.65721853,125.84,125.81,0.65444504]
[1767193483058,105.41389964,125.85,125.81,0.65444504]
[1767193483665,102.2539432,125.85,125.81,3.81440148]
[1767193484059,102.2539432,125.85,125.81,3.15995644]
[1767193484258,101.59672467,125.85,125.82,3.81440148]
[1767193484457,0.85721853,125.86,125.82,3.81440148]
[1767193484861,0.85721853,125.86,125.82,3.15995644]
[1767193485064,0.85721853,125.86,125.83,0.65444504]
[1767193485255,0.85721853,125.86,125.8,7.94877939]
[1767193485256,3.15995644,125.85,125.8,0.65444504]
[1767193485580,3.81717497,125.83,125.8,0.65444504]
[1767193485754,0.65721853,125.83,125.8,0.65444504]
[1767193485955,3.81717497,125.83,125.8,0.65444504]
[1767193486669,5.59455759,125.83,125.79,0.65444504]
[1767193487054,4.93733906,125.82,125.77,0.65444504]
[1767193487274,5.59455759,125.82,125.77,0.65444504]
[1767193487573,5.59455759,125.82,125.78,0.65444504]
[1767193490374,0.65721853,125.81,125.76,0.65444504]
[1767193490670,0.65721853,125.81,125.77,0.65444504]
[1767193490671,5.59455759,125.81,125.77,0.65444504]
[1767193491064,14.52,125.83,125.77,0.65444504]
[1767193491065,5.59455759,125.8,125.77,0.65444504]
[1767193491274,4.93733906,125.81,125.77,0.65444504]
[1767193491489,0.69885305,125.81,125.77,0.65444504]
[1767193491657,5.63619211,125.8,125.76,0.67249444]
[1767193491992,4.93733906,125.8,125.76,0.67249444]
[1767193492285,14.52,125.82,125.74,0.67249444]
[1767193492286,5.63619211,125.78,125.74,0.67249444]
[1767193492971,5.63619211,125.78,125.74,7.95289665]
[1767193492972,0.69885305,125.78,125.74,7.95289665]
[1767193493163,0.69885305,125.78,125.75,0.67249444]
[1767193494077,5.63619211,125.8,125.75,4.93733906]
[1767193494254,0.69885305,125.8,125.76,0.67249444]
[1767193494451,5.63619211,125.79,125.75,0.67249444]
[1767193494882,5.63619211,125.79,125.75,5.6098335]
[1767193495054,0.69885305,125.78,125.73,0.67249444]
[1767193495256,0.69885305,125.78,125.72,14.52]
[1767193495257,0.69885305,125.78,125.74,5.6098335]
[1767193495572,5.63619211,125.77,125.73,4.93733906]
[1767193495778,5.63619211,125.77,125.73,0.67249444]
[1767193496176,5.63619211,125.76,125.72,5.6098335]
[1767193496374,0.69885305,125.76,125.72,4.93733906]
[1767193496580,5.63619211,125.76,125.72,5.6098335]
[1767193496953,0.69885305,125.76,125.73,0.67249444]
[1767193497365,4.93733906,125.77,125.73,5.6098335]
[1767193497556,5.63619211,125.77,125.73,5.6098335]
[1767193497769,0.69885305,125.77,125.73,0.67249444]
[1767193497970,5.63619211,125.77,125.73,0.67249444]
[1767193498179,5.63619211,125.76,125.72,0.67249444]
[1767193498675,0.69885305,125.75,125.72,0.67249444]
[1767193498857,0.69885305,125.74,125.7,20.2298335]
[1767193499059,108.11958905,125.82,125.74,0.67249444]
[1767193499258,5.63619211,125.79,125.75,0.67249444]
[1767193500079,5.63619211,125.79,125.75,5.6098335]
[1767193500080,0.69885305,125.79,125.75,5.6098335]
[1767193500457,4.93733906,125.79,125.72,27.83952628]
[1767193500682,0.69885305,125.78,125.74,4.93733906]
[1767193500867,4.93733906,125.77,125.74,0.67249444]
[1767193501065,4.93733906,125.75,125.72,0.67249444]
[1767193501268,4.93733906,125.74,125.72,0.67249444]
[1767193501578,4.93733906,125.74,125.71,0.67249444]
[1767193501780,0.69885305,125.75,125.72,0.67249444]
[1767193502478,5.63619211,125.75,125.72,0.67249444]
[1767193502857,4.93733906,125.76,125.73,0.67249444]
[1767193503081,0.69885305,125.77,125.73,0.67249444]
[1767193503466,5.63619211,125.77,125.73,0.67249444]
[1767193503659,4.93733906,125.78,125.74,0.67249444]
[1767193503862,4.93733906,125.78,125.75,0.67249444]
[1767193504266,5.63619211,125.78,125.75,0.67249444]
[1767193505270,4.93733906,125.77,125.73,12.89068113]
[1767193505471,4.93733906,125.77,125.74,0.67249444]
[1767193505779,0.69885305,125.78,125.74,0.67249444]
[1767193505971,4.93733906,125.77,125.74,0.67249444]
[1767193506284,116.11672467,125.81,125.71,0.67249444]
[1767193506285,4.93733906,125.76,125.71,0.67249444]
[1767193506486,5.63619211,125.75,125.71,0.67249444]
[1767193506692,4.93733906,125.74,125.71,0.67249444]
[1767193506870,5.63619211,125.74,125.71,0.67249444]
[1767193507066,0.69885305,125.77,125.71,13.56463015]
[1767193507273,109.94686304,125.8,125.72,4.93733906]
[1767193507480,0.69885305,125.77,125.74,0.67249444]
[1767193507678,4.93733906,125.78,125.75,0.67249444]
[1767193507986,5.63619211,125.8,125.76,0.67249444]
[1767193508690,12.23265578,125.79,125.76,0.67249444]
[1767193509568,0.69885305,125.8,125.76,0.67249444]
[1767193509763,12.93150883,125.8,125.76,0.67249444]
[1767193510677,0.69885305,125.8,125.76,0.67249444]
[1767193511181,12.23265578,125.8,125.77,0.67249444]
[1767193511582,12.93150883,125.81,125.77,0.67249444]
[1767193512683,12.93150883,125.81,125.77,12.23265578]
[1767193512991,12.93150883,125.81,125.78,0.67249444]
[1767193514097,12.23265578,125.79,125.75,0.67249444]
[1767193514277,0.69885305,125.8,125.75,0.67249444]
[1767193514278,12.23265578,125.78,125.75,0.67249444]
[1767193514789,12.23265578,125.79,125.75,0.67249444]
[1767193515288,0.69885305,125.8,125.75,0.67249444]
[1767193515482,12.23265578,125.79,125.75,7.95222444]
[1767193515694,12.93150883,125.79,125.74,20.18525695]
[1767193515885,12.93150883,125.79,125.75,0.67249444]
[1767193516193,12.93150883,125.79,125.75,12.23265578]
[1767193516496,0.69885305,125.79,125.76,0.67249444]
[1767193517304,12.93150883,125.8,125.76,0.67249444]
[1767193518213,0.69885305,125.8,125.76,0.67249444]
[1767193518375,12.93150883,125.8,125.76,0.67249444]
[1767193519273,12.95559701,125.77,125.74,0.65766007]
[1767193520003,12.95559701,125.75,125.71,0.65766007]
[1767193520298,12.23265578,125.74,125.71,0.65766007]
[1767193521403,12.23265578,125.72,125.7,0.1]
[1767193521700,12.23265578,125.71,125.7,0.1]
[1767193522279,12.94949318,125.71,125.7,0.1]
[1767193522478,12.23265578,125.71,125.7,0.1]
[1767193522880,0.7168374,125.72,125.7,0.1]
[1767193523090,12.23265578,125.74,125.71,0.71243846]
[1767193523688,0.7168374,125.75,125.72,12.94509424]
[1767193524088,12.94949318,125.75,125.72,0.71243846]
[1767193524295,0.7168374,125.75,125.72,0.71243846]
[1767193524606,12.94949318,125.75,125.72,0.71243846]
[1767193524813,12.23265578,125.74,125.7,12.33265578]
[1767193525021,12.23265578,125.74,125.7,0.81243846]
[1767193525207,12.23265578,125.74,125.71,0.71243846]
[1767193525803,0.7168374,125.75,125.72,12.94509424]
[1767193526998,0.7168374,125.75,125.72,0.71243846]
[1767193527179,12.94949318,125.75,125.72,0.71243846]
[1767193528201,12.94949318,125.75,125.71,12.94509424]
[1767193528402,12.23265578,125.74,125.71,0.71243846]
[1767193528706,12.94949318,125.75,125.72,0.71243846]
[1767193529288,12.94949318,125.73,125.7,0.1]
[1767193529496,12.23265578,125.72,125.7,0.1]
[1767193529989,0.7168374,125.73,125.7,0.1]
[1767193530180,0.7168374,125.75,125.7,0.81243846]
[1767193530385,12.23265578,125.73,125.7,0.81243846]
[1767193530600,12.23265578,125.72,125.7,0.81243846]
[1767193530800,12.23265578,125.71,125.7,0.1]
[1767193531700,12.23265578,125.71,125.67,0.71243846]
[1767193531902,0.7168374,125.75,125.67,0.71243846]
[1767193532091,12.23265578,125.7,125.67,0.71243846]
[1767193532988,0.7168374,125.71,125.67,8.66947795]
[1767193533199,12.94949318,125.71,125.68,0.71243846]
[1767193534312,12.94949318,125.71,125.67,12.23265578]
[1767193534509,0.7168374,125.73,125.66,0.71243846]
[1767193534815,12.23265578,125.69,125.66,0.71243846]
[1767193535501,0.7168374,125.7,125.66,0.71243846]
[1767193535701,12.23265578,125.69,125.66,0.71243846]
[1767193535907,0.7168374,125.7,125.66,12.94509424]
[1767193536107,12.94949318,125.7,125.66,20.90291077]
[1767193536607,12.94949318,125.69,125.65,13.04509424]
[1767193536802,12.23265578,125.66,125.65,0.1]
[1767193536993,12.23265578,125.66,125.62,0.2]
[1767193536994,0.7168374,125.65,125.62,0.2]
[1767193537195,12.23265578,125.66,125.62,0.91243846]
[1767193537507,12.94949318,125.66,125.62,0.91243846]
[1767193537901,12.94949318,125.66,125.62,8.8729411]
[1767193538226,0.7168374,125.69,125.64,12.23265578]
[1767193538517,12.23265578,125.69,125.65,0.71243846]
[1767193538685,14.54,125.72,125.65,0.71243846]
[1767193538686,12.94949318,125.68,125.65,0.71243846]
[1767193539090,0.7168374,125.68,125.65,12.94509424]
[1767193539593,12.94949318,125.69,125.65,12.94509424]
[1767193539794,12.94949318,125.69,125.66,0.71243846]
[1767193541119,12.23265578,125.68,125.65,0.71243846]
[1767193541291,12.23265578,125.66,125.63,15.25243846]
[1767193541492,12.23265578,125.66,125.63,23.2121899]
[1767193541696,12.94949318,125.67,125.63,35.44484568]
[1767193543410,12.94949318,125.67,125.63,12.94509424]
[1767193545026,12.94949318,125.67,125.63,8.67230863]
[1767193545215,12.94949318,125.67,125.63,12.94509424]
[1767193546510,12.94949318,125.68,125.64,0.71243846]
[1767193546710,12.94949318,125.68,125.64,12.94509424]
[1767193547616,101.59672467,125.7,125.66,12.94509424]
[1767193547824,114.54621785,125.7,125.66,12.94509424]
[1767193548211,12.23265578,125.69,125.66,0.71243846]
[1767193548524,7.5403264,125.69,125.66,0.71243846]
[1767193549309,7.5403264,125.67,125.65,14.54]
[1767193550210,8.2571638,125.68,125.65,14.54]
[1767193550913,102.31356207,125.7,125.65,30.03890784]
[1767193551113,7.5403264,125.69,125.65,14.54]
[1767193551306,8.22229309,125.68,125.65,14.54]
[1767193551506,8.22229309,125.68,125.65,15.2615355]
[1767193551827,7.5403264,125.67,125.65,15.2615355]
[1767193552011,7.5403264,125.67,125.65,0.7215355]
[1767193552606,3.16794388,125.67,125.65,0.7215355]
[1767193553109,3.84991057,125.66,125.63,0.7215355]
[1767193553308,3.16794388,125.64,125.62,0.2]
[1767193553802,14.54,125.68,125.61,0.1]
[1767193553803,3.16794388,125.63,125.61,0.1]
[1767193554008,3.16794388,125.63,125.6,0.1]
[1767193554009,0.68196669,125.62,125.6,0.1]
[1767193554514,8.23008268,125.63,125.6,0.1]
[1767193555029,14.54,125.66,125.59,0.1]
[1767193555030,8.23008268,125.61,125.59,0.1]
[1767193555424,7.54811599,125.61,125.59,0.1]
[1767193555933,7.54811599,125.62,125.59,0.1]
[1767193556114,8.23008268,125.6,125.59,0.1]
[1767193556515,8.23008268,125.6,125.56,0.7215355]
[1767193556817,7.54811599,125.59,125.56,0.7215355]
[1767193557223,7.54811599,125.6,125.56,7.54811599]
[1767193557412,7.54811599,125.6,125.57,0.7215355]
[1767193557821,0.68196669,125.61,125.57,0.7215355]
[1767193558017,7.54811599,125.6,125.57,0.7215355]
[1767193559328,14.54,125.63,125.57,0.7215355]
[1767193559521,0.68196669,125.62,125.58,0.7215355]
[1767193559830,7.54811599,125.61,125.58,0.7215355]
[1767193560607,0.68196669,125.62,125.58,0.7215355]
[1767193560907,15.22196669,125.63,125.58,0.7215355]
[1767193561111,7.54811599,125.62,125.58,0.7215355]
[1767193561333,8.23008268,125.61,125.58,0.7215355]
[1767193561724,7.54811599,125.61,125.58,0.7215355]
[1767193561919,7.54811599,125.6,125.58,0.7215355]
[1767193562234,7.54811599,125.6,125.57,0.7215355]
[1767193562627,0.68196669,125.61,125.57,7.96367206]
[1767193562817,7.54811599,125.62,125.58,8.26965149]
[1767193563017,15.22196669,125.63,125.59,8.26965149]
[1767193563211,109.14484066,125.64,125.6,8.26965149]
[1767193563212,7.54811599,125.64,125.6,8.26965149]
[1767193563430,0.68196669,125.65,125.6,8.26965149]
[1767193563616,7.54811599,125.64,125.61,0.7215355]
[1767193564838,0.68196669,125.65,125.61,0.7215355]
[1767193565040,7.54811599,125.64,125.61,0.7215355]
[1767193565342,0.68196669,125.65,125.61,0.7215355]
[1767193565644,7.54811599,125.64,125.61,0.7215355]
[1767193565821,0.68196669,125.65,125.61,0.7215355]
[1767193566020,7.54811599,125.64,125.61,0.7215355]
[1767193566544,7.54811599,125.64,125.59,7.96234417]
[1767193566842,0.68196669,125.67,125.59,0.7215355]
[1767193567039,7.54811599,125.62,125.59,0.7215355]
[1767193567257,7.54811599,125.6,125.57,0.7215355]
[1767193567450,7.54811599,125.6,125.57,8.68515083]
[1767193567632,8.23008268,125.61,125.57,8.68515083]
[1767193568543,8.23008268,125.61,125.57,15.51173132]
[1767193568544,0.68196669,125.61,125.57,15.51173132]
[1767193568853,0.68196669,125.61,125.58,0.7215355]
[1767193571542,7.54811599,125.63,125.6,0.7215355]
[1767193571741,7.54811599,125.63,125.58,16.23262689]
[1767193571941,8.23008268,125.62,125.58,16.23262689]
[1767193572137,8.23008268,125.62,125.58,0.7215355]
[1767193572341,14.54,125.64,125.57,7.96340794]
[1767193572537,7.54811599,125.61,125.58,0.7215355]
[1767193572736,14.54,125.64,125.58,0.7215355]
[1767193572936,7.54811599,125.62,125.58,0.7215355]
[1767193573127,101.59672467,125.63,125.59,0.7215355]
[1767193573328,7.54811599,125.66,125.62,0.7215355]
[1767193573527,14.54,125.7,125.6,8.68280638]
[1767193573528,7.54811599,125.64,125.6,8.68280638]
[1767193573746,7.54811599,125.63,125.6,0.7215355]
[1767193574852,7.54811599,125.64,125.61,0.7215355]
[1767193575058,7.54811599,125.65,125.61,0.7215355]
[1767193575235,8.13460863,125.65,125.61,0.7215355]
[1767193575637,0.58649264,125.65,125.61,0.7215355]
[1767193575836,8.13460863,125.65,125.61,0.7215355]
[1767193576856,0.58649264,125.65,125.61,0.7215355]
[1767193577157,8.13460863,125.65,125.61,0.7215355]
[1767193577534,7.54811599,125.64,125.61,0.7215355]
[1767193577730,0.58649264,125.64,125.6,0.7215355]
[1767193577936,8.13460863,125.63,125.6,0.7215355]
[1767193578160,7.54811599,125.63,125.6,0.7215355]
[1767193578451,3.17022911,125.63,125.6,0.7215355]
[1767193578848,0.58649264,125.64,125.6,0.7215355]
[1767193579052,3.75672175,125.64,125.6,0.7215355]
[1767193580364,0.58649264,125.64,125.6,0.7215355]
[1767193580861,3.75672175,125.64,125.6,0.7215355]
[1767193581255,0.58649264,125.64,125.6,0.7215355]
[1767193581449,3.75672175,125.64,125.6,0.7215355]
[1767193582956,102.18321731,125.66,125.62,0.69215619]
[1767193583148,3.17022911,125.65,125.62,0.69215619]
[1767193584158,102.18321731,125.66,125.62,0.69215619]
[1767193584359,3.17022911,125.65,125.62,0.69215619]
[1767193584746,3.75672175,125.63,125.6,0.69215619]
[1767193584944,3.75672175,125.63,125.6,7.96171641]
[1767193585140,3.17022911,125.63,125.6,8.6538726]
[1767193585949,3.75672175,125.63,125.6,7.96171641]
[1767193586350,3.75672175,125.63,125.6,8.6538726]
[1767193587463,0.58649264,125.63,125.6,8.6538726]
[1767193587663,0.58649264,125.65,125.61,3.8623853]
[1767193587855,3.75672175,125.65,125.61,3.8623853]
[1767193588262,0.58649264,125.65,125.61,11.82295094]
[1767193588462,3.75672175,125.65,125.61,11.82295094]
[1767193588662,3.75672175,125.65,125.61,8.65272183]
[1767193590251,0.58649264,125.65,125.61,11.13079475]
[1767193590447,0.58649264,125.68,125.65,0.69215619]
[1767193590652,3.75672175,125.7,125.66,3.8623853]
[1767193591054,0.58649264,125.71,125.67,3.8623853]
[1767193591271,3.75672175,125.72,125.68,3.8623853]
[1767193591470,0.58649264,125.74,125.7,3.8623853]
[1767193591965,3.75672175,125.75,125.71,3.8623853]
[1767193592171,0.58649264,125.75,125.71,3.8623853]
[1767193592469,3.75672175,125.75,125.71,3.8623853]
[1767193592669,0.58649264,125.75,125.71,11.81717383]
[1767193593251,0.2,125.76,125.73,3.8623853]
[1767193594161,0.2,125.76,125.73,0.69215619]
[1767193594371,3.95672175,125.76,125.72,14.54]
[1767193594546,8.31946104,125.76,125.72,15.23215619]
[1767193595053,0.78649264,125.76,125.72,14.54]
[1767193595353,8.11946104,125.75,125.72,14.54]
[1767193595655,8.11946104,125.75,125.71,7.5329684]
[1767193595963,8.11946104,125.75,125.64,0.69215619]
[1767193595964,7.5329684,125.72,125.64,0.69215619]
[1767193596171,7.5329684,125.7,125.67,0.69215619]
[1767193596654,7.5329684,125.7,125.65,8.65053518]
[1767193596855,8.11946104,125.7,125.65,8.65053518]
[1767193597073,0.58649264,125.7,125.66,0.69215619]
[1767193597375,8.11946104,125.7,125.66,0.69215619]
[1767193597562,7.5329684,125.72,125.68,0.69215619]
[1767193597759,8.11946104,125.73,125.68,7.5329684]
[1767193597962,7.5329684,125.73,125.69,0.69215619]
[1767193598267,7.5329684,125.72,125.69,0.69215619]
[1767193598574,7.5329684,125.72,125.68,0.69215619]
[1767193600069,0.58649264,125.75,125.69,0.69215619]
[1767193600273,8.11946104,125.73,125.69,0.69215619]
[1767193600474,7.5329684,125.72,125.69,0.69215619]
[1767193600667,7.5329684,125.7,125.67,0.69215619]
[1767193600859,7.5329684,125.7,125.64,19.89724428]
[1767193600860,0.58649264,125.71,125.64,7.95862018]
[1767193601063,0.58649264,125.71,125.62,19.9006762]
[1767193601064,7.5329684,125.69,125.65,8.65073303]
[1767193601675,7.5329684,125.68,125.65,0.69215619]
[1767193601865,7.5329684,125.67,125.65,0.69215619]
[1767193602173,7.5329684,125.68,125.65,0.69215619]
[1767193602964,7.5329684,125.67,125.63,22.49967675]
[1767193603150,7.5329684,125.67,125.64,0.69215619]
[1767193603355,7.5329684,125.68,125.64,0.69215619]
[1767193604456,7.5329684,125.67,125.64,0.69215619]
[1767193604669,7.5329684,125.66,125.62,0.69215619]
[1767193605669,0.58649264,125.71,125.64,0.69215619]
[1767193605869,7.5329684,125.68,125.65,0.69215619]
[1767193606482,7.5329684,125.67,125.65,0.69215619]
[1767193607559,7.5329684,125.67,125.63,22.49954201]
[1767193607560,8.11946104,125.66,125.62,0.66977285]
[1767193607883,7.5329684,125.65,125.62,0.66977285]
[1767193608683,12.84824302,125.66,125.62,8.63011899]
[1767193608862,0.58649264,125.69,125.63,0.66977285]
[1767193609063,12.26175038,125.68,125.63,0.66977285]
[1767193609965,12.26175038,125.68,125.62,40.12338612]
[1767193609966,12.84824302,125.71,125.66,0.66977285]
[1767193610384,12.26175038,125.7,125.66,0.66977285]
[1767193610583,12.26175038,125.7,125.67,8.62712146]
[1767193611086,12.26175038,125.7,125.67,0.66977285]
[1767193611286,12.26175038,125.68,125.65,8.61535835]
[1767193611986,12.26175038,125.69,125.66,0.65707419]
[1767193612382,12.26175038,125.69,125.65,8.61535835]
[1767193614475,12.26175038,125.71,125.66,0.65707419]
[1767193614692,12.26175038,125.71,125.67,0.65707419]
[1767193615092,0.58649264,125.75,125.69,0.65707419]
[1767193615289,12.26175038,125.74,125.7,8.61252367]
[1767193615691,0.58649264,125.75,125.7,8.61252367]
[1767193615890,12.26175038,125.74,125.7,8.61252367]
[1767193616695,0.58649264,125.75,125.7,8.61252367]
[1767193616998,12.26175038,125.74,125.7,8.61252367]
[1767193617385,12.84824302,125.75,125.7,8.61252367]
[1767193617595,0.2,125.76,125.71,0.65707419]
[1767193617785,0.2,125.76,125.73,12.26175038]
[1767193617987,12.26175038,125.76,125.7,42.38407318]
[1767193618194,12.26175038,125.76,125.71,0.65707419]
[1767193618883,12.26175038,125.74,125.71,0.65707419]
[1767193619088,12.26175038,125.75,125.71,0.65707419]
[1767193619699,12.26175038,125.75,125.71,8.61184991]
[1767193620192,12.26175038,125.75,125.72,0.65707419]
[1767193621275,12.26175038,125.74,125.72,0.65707419]
[1767193621683,12.26175038,125.73,125.69,0.65707419]
[1767193621886,12.26175038,125.73,125.69,23.15258156]
[1767193622175,12.26175038,125.73,125.69,15.19707419]
[1767193622589,15.22146087,125.76,125.71,0.65707419]
[1767193622795,12.94321125,125.76,125.72,0.65707419]
[1767193623308,12.26175038,125.76,125.73,0.65707419]
[1767193623607,12.26175038,125.75,125.71,7.95450904]
[1767193623777,12.26175038,125.74,125.7,7.95521803]
[1767193624173,12.26175038,125.74,125.71,0.65707419]
[1767193624592,12.26175038,125.73,125.7,7.95521803]
[1767193624803,12.26175038,125.74,125.71,0.65707419]
[1767193625019,12.26175038,125.73,125.69,8.61287225]
[1767193625189,12.26175038,125.72,125.69,0.65707419]
[1767193625806,12.26175038,125.72,125.68,7.95643609]
[1767193625975,12.26175038,125.7,125.67,23.15437359]
[1767193626605,0.68146087,125.76,125.69,0.65707419]
[1767193626813,12.26175038,125.73,125.7,0.65707419]
[1767193627679,12.26175038,125.73,125.69,7.95606439]
[1767193627874,12.26175038,125.73,125.69,8.61313858]
[1767193628076,12.26175038,125.73,125.7,0.65707419]
[1767193628298,12.26175038,125.72,125.7,0.65707419]
[1767193628498,0.68146087,125.74,125.68,0.65707419]
[1767193628704,15.22146087,125.75,125.7,8.61249887]
[1767193628900,12.26175038,125.74,125.7,0.65707419]
[1767193629097,12.26175038,125.71,125.67,8.61401959]
[1767193629498,12.26175038,125.7,125.67,8.61401959]
[1767193629701,12.26175038,125.71,125.68,0.65707419]
[1767193629909,14.54,125.74,125.68,0.65707419]
[1767193630199,12.26175038,125.71,125.68,0.65707419]
[1767193630399,12.26175038,125.71,125.68,7.95671472]
[1767193630590,12.26175038,125.72,125.69,0.65707419]
[1767193630781,12.26175038,125.72,125.68,7.95671472]
[1767193630986,12.94321125,125.72,125.68,7.95671472]
[1767193631186,12.26175038,125.72,125.68,0.65707419]
[1767193631593,12.94321125,125.72,125.68,0.65707419]
[1767193631803,12.94321125,125.71,125.67,7.95706667]
[1767193632388,12.26175038,125.69,125.67,0.65707419]
[1767193632595,12.26175038,125.68,125.65,22.49822748]
[1767193632906,12.26175038,125.68,125.65,7.95822748]
[1767193633101,12.26175038,125.68,125.65,8.61530167]
[1767193633402,12.26175038,125.67,125.66,0.65707419]
[1767193633603,12.26175038,125.68,125.65,7.95857998]
[1767193633988,12.26175038,125.68,125.66,0.65707419]
[1767193634190,12.26175038,125.68,125.65,7.95857998]
[1767193634404,0.68146087,125.7,125.65,8.61565417]
[1767193634603,12.26175038,125.69,125.65,7.95857998]
[1767193634784,12.26175038,125.69,125.66,0.65707419]
[1767193635887,15.22146087,125.71,125.66,7.95790324]
[1767193636089,15.22146087,125.71,125.67,0.65707419]
[1767193636288,12.26175038,125.7,125.66,7.95790324]
[1767193636489,12.94321125,125.7,125.66,7.95790324]
[1767193636786,14.54,125.72,125.66,7.95790324]
[1767193636787,0.68146087,125.72,125.68,0.65707419]
[1767193636987,12.26175038,125.73,125.68,12.91882457]
[1767193637193,12.26175038,125.73,125.69,0.65707419]
[1767193637487,12.94321125,125.74,125.7,7.95544948]
[1767193637702,12.26175038,125.73,125.69,8.61292789]
[1767193638514,12.26175038,125.72,125.69,7.9558537]
[1767193639308,12.94321125,125.73,125.69,8.62642821]
[1767193639712,12.26175038,125.73,125.68,27.84827405]
[1767193639886,12.26175038,125.73,125.69,0.67057451]
[1767193640092,12.93322988,125.73,125.69,0.67057451]
[1767193640294,12.26175038,125.73,125.69,0.67057451]
[1767193640825,12.26175038,125.72,125.69,0.67057451]
[1767193641016,12.26175038,125.7,125.68,0.67057451]
[1767193641201,12.26175038,125.7,125.66,7.95766177]
[1767193641399,12.26175038,125.7,125.66,8.61076337]
[1767193641603,12.26175038,125.7,125.67,7.95734255]
[1767193642600,12.93931946,125.71,125.67,8.61044415]
[1767193643000,12.26175038,125.7,125.67,8.61044415]
[1767193643304,0.67756908,125.71,125.67,8.61044415]
[1767193643305,12.26175038,125.71,125.67,8.61044415]
[1767193643511,12.26175038,125.72,125.68,0.6531016]
[1767193644005,12.26175038,125.74,125.7,0.6531016]
[1767193644202,12.93931946,125.75,125.71,0.6531016]
[1767193645106,12.26175038,125.74,125.69,20.8706287]
[1767193645412,12.93931946,125.74,125.7,8.60845572]
[1767193646202,0.67756908,125.74,125.7,8.60845572]
[1767193646398,12.93931946,125.74,125.7,8.60845572]
[1767193647219,0.67756908,125.72,125.68,15.1931016]
[1767193647523,12.93931946,125.72,125.68,23.14944101]
[1767193648521,12.93931946,125.72,125.68,8.60944101]
[1767193649929,12.26175038,125.7,125.66,0.6531016]
[1767193650106,12.26175038,125.68,125.65,7.95831538]
[1767193650307,12.26175038,125.68,125.65,8.61141698]
[1767193650507,12.93931946,125.69,125.65,8.61141698]
[1767193651530,12.26175038,125.69,125.66,0.6531016]
[1767193651710,12.26175038,125.68,125.66,0.6531016]
[1767193651912,12.93931946,125.67,125.62,8.61361744]
[1767193652123,12.26175038,125.65,125.63,0.6531016]
[1767193652312,12.26175038,125.66,125.63,0.6531016]
[1767193653406,0.67756908,125.71,125.64,0.6531016]
[1767193653617,12.26175038,125.68,125.64,0.6531016]
[1767193653846,12.26175038,125.7,125.65,0.6531016]
[1767193654021,12.93931946,125.7,125.66,0.6531016]
[1767193654214,0.67756908,125.7,125.66,0.6531016]
[1767193655150,0.67756908,125.7,125.66,8.61070927]
[1767193656034,12.93931946,125.7,125.66,8.61070927]